fUSD/lending_fUSD_20250206
["ID","MTS","AMOUNT","RATE_DAILY","PERIOD"]
[352005452,1738876243883,-500.0,0.00017117,2]
[352005453,1738876243893,-500.0,0.00017117,2]
[352005455,1738876243903,-500.0,0.00017117,2]
[352005457,1738876243912,-500.0,0.00017117,2]
[352005459,1738876243921,-1046.02,0.00017117,2]
[352005461,1738876243930,-500.0,0.00017117,2]
[352005463,1738876243940,-517.09223173,0.00017117,2]
[352005465,1738876243951,-500.0,0.00017117,2]
[352005467,1738876243962,-500.0,0.00017117,2]
[352005468,1738876243971,-500.0,0.00017117,2]
[352005470,1738876243981,-500.0,0.00017117,2]
[352005472,1738876243990,-500.0,0.00017117,2]
[352005474,1738876243999,-500.0,0.00017117,2]
[352005476,1738876244009,-500.0,0.00017117,2]
[352005478,1738876244018,-362.86,0.00017117,2]
[352005479,1738876244028,-500.0,0.00017117,2]
[352005481,1738876244037,-500.0,0.00017117,2]
[352005483,1738876244046,-500.0,0.00017117,2]
[352005485,1738876244056,-500.0,0.00017117,2]
[352005487,1738876244065,-516.47,0.00017117,2]
[352005489,1738876244075,-500.0,0.00017117,2]
[352005491,1738876244084,-500.0,0.00017117,2]
[352005493,1738876244093,-500.0,0.00017117,2]
[352005494,1738876244102,-500.0,0.00017117,2]
[352005496,1738876244111,-356.81965519,0.00017117,2]
[352005498,1738876244121,-500.0,0.00017117,2]
[352005500,1738876244130,-500.0,0.00017117,2]
[352005502,1738876244141,-500.0,0.00017117,2]
[352005504,1738876244150,-500.0,0.00017117,2]
[352005506,1738876244159,-500.0,0.00017117,2]
[352005508,1738876244169,-500.0,0.00017117,2]
[352005509,1738876244178,-1059.9,0.00017117,2]
[352005511,1738876244187,-500.0,0.00017117,2]
[352005513,1738876244197,-500.0,0.00017117,2]
[352005515,1738876244206,-500.0,0.00017117,2]
[352005516,1738876244216,-500.0,0.00017117,2]
[352005517,1738876244225,-320.08,0.00017117,2]
[352005518,1738876244234,-500.0,0.00017117,2]
[352005519,1738876244243,-500.0,0.00017117,2]
[352005520,1738876244252,-500.0,0.00017117,2]
[352005521,1738876244261,-748.88,0.00017117,2]
[352005522,1738876244270,-500.0,0.00017117,2]
[352005523,1738876244278,-500.0,0.00017117,2]
[352005524,1738876244287,-500.0,0.00017117,2]
[352005525,1738876244296,-500.0,0.00017117,2]
[352005526,1738876244305,-500.0,0.00017117,2]
[352005527,1738876244315,-500.0,0.00017117,2]
[352005528,1738876244324,-500.0,0.00017117,2]
[352005529,1738876244333,-500.0,0.00017117,2]
[352005530,1738876244343,-500.0,0.00017117,2]
[352005531,1738876244352,-500.0,0.00017117,2]
[352005532,1738876244362,-500.0,0.00017117,2]
[352005533,1738876244371,-500.0,0.00017117,2]
[352005534,1738876244380,-500.0,0.00017117,2]
[352005535,1738876244389,-640.73,0.00017117,2]
[352005537,1738876244399,-500.0,0.00017117,2]
[352005538,1738876244408,-521.72,0.00017117,2]
[352005540,1738876244418,-500.0,0.00017117,2]
[352005542,1738876244427,-500.0,0.00017117,2]
[352005544,1738876244436,-530.01,0.00017117,2]
[352005546,1738876244446,-500.0,0.00017117,2]
[352005548,1738876244456,-500.0,0.00017117,2]
[352005550,1738876244466,-500.0,0.00017117,2]
[352005552,1738876244475,-500.0,0.00017117,2]
[352005554,1738876244485,-225.49444241,0.00017117,2]
[352005556,1738876244494,-610.16,0.00017117,2]
[352005558,1738876244503,-833.92,0.00017117,2]
[352005560,1738876244513,-500.0,0.00017117,2]
[352005562,1738876244523,-500.0,0.00017117,2]
[352005564,1738876244531,-500.0,0.00017117,2]
[352005566,1738876244540,-500.0,0.00017117,2]
[352005568,1738876244550,-500.0,0.00017117,2]
[352005570,1738876244559,-500.0,0.00017117,2]
[352005572,1738876244567,-1244.56,0.00017117,2]
[352005574,1738876244577,-500.0,0.00017117,2]
[352005576,1738876244587,-500.0,0.00017117,2]
[352005578,1738876244597,-500.0,0.00017117,2]
[352005580,1738876244606,-500.0,0.00017117,2]
[352005582,1738876244615,-203.09,0.00017117,2]
[352005584,1738876244625,-838.67,0.00017117,2]
[352005586,1738876244634,-500.0,0.00017117,2]
[352005588,1738876244644,-500.0,0.00017117,2]
[352005590,1738876244653,-500.0,0.00017117,2]
[352005592,1738876244664,-500.0,0.00017117,2]
[352005594,1738876244675,-500.0,0.00017117,2]
[352005596,1738876244684,-500.0,0.00017117,2]
[352005598,1738876244694,-510.51,0.00017117,2]
[352005600,1738876244703,-500.0,0.00017117,2]
[352005602,1738876244715,-500.0,0.00017117,2]
[352005604,1738876244724,-500.0,0.00017117,2]
[352005606,1738876244733,-1059.52,0.00017117,2]
[352005608,1738876244744,-500.0,0.00017117,2]
[352005610,1738876244753,-500.0,0.00017117,2]
[352005612,1738876244763,-500.0,0.00017117,2]
[352005614,1738876244772,-642.4,0.00017117,2]
[352005616,1738876244781,-694.03,0.00017117,2]
[352005618,1738876244790,-500.0,0.00017117,2]
[352005620,1738876244800,-500.0,0.00017117,2]
[352005622,1738876244809,-500.0,0.00017117,2]
[352005624,1738876244818,-500.0,0.00017117,2]
[352005626,1738876244827,-500.0,0.00017117,2]
[352005628,1738876244838,-500.0,0.00017117,2]
[352005630,1738876244848,-500.0,0.00017117,2]
[352005632,1738876244857,-500.0,0.00017117,2]
[352005634,1738876244867,-500.0,0.00017117,2]
[352005636,1738876244876,-500.0,0.00017117,2]
[352005639,1738876244886,-500.0,0.00017117,2]
[352005641,1738876244895,-507.75,0.00017117,2]
[352005642,1738876244904,-500.0,0.00017117,2]
[352005644,1738876244914,-496.1877712,0.00017117,2]
[352005646,1738876244923,-500.0,0.00017117,2]
[352005649,1738876244932,-500.0,0.00017117,2]
[352005651,1738876244941,-500.0,0.00017117,2]
[352005653,1738876244951,-879.8,0.00017117,2]
[352005654,1738876244961,-500.0,0.00017117,2]
[352005656,1738876244971,-500.0,0.00017117,2]
[352005659,1738876244980,-500.0,0.00017117,2]
[352005661,1738876244990,-500.0,0.00017117,2]
[352005662,1738876244999,-500.0,0.00017117,2]
[352005664,1738876245008,-809.66,0.00017117,2]
[352005666,1738876245018,-500.0,0.00017117,2]
[352005668,1738876245027,-500.0,0.00017117,2]
[352005670,1738876245036,-500.0,0.00017117,2]
[352005672,1738876245046,-500.0,0.00017117,2]
[352005674,1738876245055,-519.75,0.00017117,2]
[352005676,1738876245064,-500.0,0.00017117,2]
[352005678,1738876245074,-500.0,0.00017117,2]
[352005680,1738876245083,-500.0,0.00017117,2]
[352005682,1738876245093,-500.0,0.00017117,2]
[352005684,1738876245103,-500.0,0.00017117,2]
[352005686,1738876245112,-664.14,0.00017117,2]
[352005688,1738876245121,-500.0,0.00017117,2]
[352005690,1738876245131,-236.6,0.00017117,2]
[352005692,1738876245141,-500.0,0.00017117,2]
[352005694,1738876245150,-609.98,0.00017117,2]
[352005696,1738876245160,-500.0,0.00017117,2]
[352005698,1738876245169,-500.0,0.00017117,2]
[352005700,1738876245179,-948.95,0.00017117,2]
[352005702,1738876245188,-212.91,0.00017117,2]
[352005704,1738876245198,-500.0,0.00017117,2]
[352005706,1738876245209,-212.8,0.00017117,2]
[352005708,1738876245219,-420.02322856,0.00017118,2]
[352005710,1738876245230,-500.0,0.00017118,2]
[352005712,1738876245239,-510.20249349,0.00017118,2]
[352005714,1738876245251,-471.09447979,0.00017118,2]
[352005716,1738876245261,-150.0,0.00017119,2]
[352005718,1738876245270,-150.0,0.00017125,2]
[352005720,1738876245280,-150.0,0.00017126,2]
[352005722,1738876245291,-150.0,0.0001713,2]
[352005724,1738876245299,-150.0,0.0001713,2]
[352005726,1738876245309,-150.0,0.00017133,2]
[352005728,1738876245319,-150.0,0.00017134,2]
[352005730,1738876245329,-2680.06208336,0.00017139,2]
[352005732,1738876245340,-150.0,0.00017143,2]
[352005734,1738876245350,-150.0,0.00017143,2]
[352005736,1738876245360,-150.0,0.00017145,2]
[352005738,1738876245369,-150.0,0.00017147,2]
[352005740,1738876245378,-150.0,0.00017148,2]
[352005742,1738876245388,-150.0,0.00017149,2]
[352005744,1738876245398,-150.0,0.00017154,2]
[352005746,1738876245408,-150.0,0.00017157,2]
[352005748,1738876245417,-150.0,0.00017162,2]
[352005750,1738876245427,-232.65332889,0.00017162,2]
[352005752,1738876245436,-150.0,0.00017165,2]
[352005754,1738876245445,-151.25271638,0.00017173,2]
[352005756,1738876245456,-500.0,0.00017173,2]
[352005758,1738876245466,-150.0,0.00017175,2]
[352005760,1738876245476,-500.0,0.00017177,2]
[352005762,1738876245485,-2000.0,0.00017177,2]
[352005764,1738876245495,-500.0,0.00017177,2]
[352005765,1738876245503,-500.0,0.00017177,2]
[352005767,1738876245513,-200.0,0.00017177,2]
[352005769,1738876245523,-150.0,0.00017179,2]
[352005772,1738876245532,-150.0,0.0001718,2]
[352005774,1738876245542,-150.0,0.00017184,2]
[352005776,1738876245551,-150.0,0.00017185,2]
[352005778,1738876245560,-150.0,0.00017192,2]
[352005780,1738876245569,-150.0,0.00017194,2]
[352005782,1738876245579,-2176.0,0.00017197,2]
[352005785,1738876245588,-150.0,0.00017197,2]
[352005787,1738876245598,-150.0,0.00017198,2]
[352005789,1738876245608,-150.0,0.00017202,2]
[352005791,1738876245618,-150.0,0.00017204,2]
[352005793,1738876245628,-150.0,0.00017207,2]
[352005795,1738876245637,-150.0,0.00017207,2]
[352005797,1738876245647,-150.0,0.00017209,2]
[352005800,1738876245656,-150.0,0.00017209,2]
[352005802,1738876245667,-300.0,0.0001721,2]
[352005804,1738876245677,-2725.56777521,0.0001721,2]
[352005806,1738876245686,-150.0,0.00017211,2]
[352005825,1738876245859,-150.0,0.00017215,2]
[352005827,1738876245869,-150.0,0.00017218,2]
[352005829,1738876245878,-150.0,0.0001722,2]
[352005831,1738876245887,-150.0,0.00017221,2]
[352005833,1738876245896,-150.0,0.00017229,2]
[352005835,1738876245906,-150.0,0.0001723,2]
[352005837,1738876245916,-150.0,0.00017231,2]
[352005839,1738876245925,-150.0,0.00017231,2]
[352005841,1738876245935,-150.0,0.00017235,2]
[352005843,1738876245944,-449.29,0.00017235,2]
[352005845,1738876245954,-150.0,0.00017235,2]
[352005847,1738876245965,-150.0,0.00017235,2]
[352005849,1738876245974,-150.0,0.00017235,2]
[352005851,1738876245984,-150.0,0.00017235,2]
[352005853,1738876245995,-984.89,0.00017235,2]
[352005855,1738876246005,-300.0,0.00017235,2]
[352005857,1738876246014,-984.89,0.00017235,2]
[352005859,1738876246023,-150.0,0.00017237,2]
[352005861,1738876246032,-150.0,0.00017238,2]
[352005863,1738876246043,-150.0,0.00017241,2]
[352005865,1738876246053,-150.0,0.00017245,2]
[352005867,1738876246062,-150.0,0.0001725,2]
[352005869,1738876246072,-150.0,0.0001725,2]
[352005871,1738876246082,-150.0,0.00017252,2]
[352005873,1738876246092,-21345.95849095,0.00017253,4]
[352005875,1738876246102,-150.0,0.00017253,2]
[352005878,1738876246112,-500.0,0.00017253,2]
[352005880,1738876246122,-500.0,0.00017253,2]
[352005882,1738876246131,-500.0,0.00017253,2]
[352005883,1738876246141,-500.0,0.00017253,2]
[352005886,1738876246151,-500.0,0.00017253,2]
[352005888,1738876246161,-514.25,0.00017253,2]
[352005890,1738876246170,-500.0,0.00017253,2]
[352005892,1738876246179,-500.0,0.00017253,2]
[352005893,1738876246189,-500.0,0.00017253,2]
[352005895,1738876246199,-500.0,0.00017253,2]
[352005898,1738876246211,-600.23,0.00017253,2]
[352005900,1738876246220,-246.46,0.00017253,2]
[352005901,1738876246230,-658.35,0.00017253,2]
[352005903,1738876246240,-569.41,0.00017253,2]
[352005905,1738876246250,-517.6,0.00017253,2]
[352005907,1738876246260,-814.05,0.00017253,2]
[352005910,1738876246269,-500.0,0.00017253,2]
[352005911,1738876246279,-1411.08,0.00017253,2]
[352005913,1738876246287,-500.0,0.00017253,2]
[352005915,1738876246296,-1085.04,0.00017253,2]
[352005917,1738876246306,-534.35,0.00017253,2]
[352005919,1738876246316,-500.0,0.00017253,2]
[352005921,1738876246325,-1014.82,0.00017253,2]
[352005923,1738876246335,-767.47,0.00017253,2]
[352005926,1738876246346,-695.55,0.00017253,2]
[352005928,1738876246356,-612.98,0.00017253,2]
[352005930,1738876246365,-993.91,0.00017253,2]
[352005932,1738876246374,-500.0,0.00017253,2]
[352005934,1738876246384,-504.84,0.00017253,2]
[352005936,1738876246393,-1654.52,0.00017253,2]
[352005938,1738876246403,-878.59,0.00017253,2]
[352005940,1738876246412,-500.0,0.00017253,2]
[352005942,1738876246422,-500.0,0.00017253,2]
[352005944,1738876246432,-526.46,0.00017253,2]
[352005946,1738876246441,-786.51,0.00017253,2]
[352005948,1738876246450,-864.3,0.00017253,2]
[352005950,1738876246461,-783.9,0.00017253,2]
[352005952,1738876246470,-597.3,0.00017253,2]
[352005954,1738876246480,-1022.06,0.00017253,2]
[352005956,1738876246490,-510.39,0.00017253,2]
[352005958,1738876246499,-500.0,0.00017253,2]
[352005960,1738876246509,-645.94,0.00017253,2]
[352005962,1738876246518,-1190.89,0.00017253,2]
[352005964,1738876246527,-500.0,0.00017253,2]
[352005966,1738876246537,-571.98,0.00017253,2]
[352005968,1738876246547,-500.0,0.00017253,2]
[352005970,1738876246557,-500.0,0.00017253,2]
[352005972,1738876246566,-500.0,0.00017253,2]
[352005974,1738876246575,-537.83,0.00017253,2]
[352005975,1738876246584,-500.0,0.00017253,2]
[352005978,1738876246594,-1135.93,0.00017253,2]
[352005979,1738876246603,-973.78,0.00017253,2]
[352005981,1738876246613,-500.0,0.00017253,2]
[352005983,1738876246622,-500.0,0.00017253,2]
[352005985,1738876246632,-500.19,0.00017253,2]
[352005987,1738876246643,-708.82,0.00017253,2]
[352005990,1738876246652,-694.04,0.00017253,2]
[352005992,1738876246665,-621.63,0.00017254,2]
[352005994,1738876246675,-500.0,0.00017254,2]
[352005995,1738876246684,-500.0,0.00017254,2]
[352005997,1738876246694,-500.0,0.00017254,2]
[352006000,1738876246705,-500.0,0.00017254,2]
[352006001,1738876246715,-629.88,0.00017254,2]
[352006003,1738876246725,-198.04,0.00017254,2]
[352006006,1738876246735,-500.0,0.00017254,2]
[352006007,1738876246745,-152.31,0.00017254,2]
[352006010,1738876246756,-500.0,0.00017254,2]
[352006011,1738876246765,-500.0,0.00017254,2]
[352006013,1738876246774,-500.0,0.00017254,2]
[352006015,1738876246784,-500.0,0.00017254,2]
[352006017,1738876246793,-265.43,0.00017254,2]
[352006019,1738876246802,-500.0,0.00017254,2]
[352006021,1738876246811,-500.0,0.00017254,2]
[352006023,1738876246821,-500.0,0.00017254,2]
[352006025,1738876246831,-500.0,0.00017254,2]
[352006027,1738876246840,-500.0,0.00017254,2]
[352006029,1738876246850,-500.0,0.00017254,2]
[352006031,1738876246859,-595.37,0.00017254,2]
[352006033,1738876246868,-500.0,0.00017254,2]
[352006035,1738876246878,-500.0,0.00017254,2]
[352006037,1738876246887,-500.0,0.00017254,2]
[352006039,1738876246896,-500.0,0.00017254,2]
[352006041,1738876246905,-500.0,0.00017254,2]
[352006043,1738876246914,-500.0,0.00017254,2]
[352006045,1738876246923,-500.0,0.00017254,2]
[352006047,1738876246933,-500.0,0.00017254,2]
[352006049,1738876246943,-500.0,0.00017254,2]
[352006051,1738876246953,-539.24,0.00017254,2]
[352006053,1738876246963,-500.0,0.00017254,2]
[352006055,1738876246972,-500.0,0.00017254,2]
[352006057,1738876246982,-500.0,0.00017254,2]
[352006059,1738876246991,-500.0,0.00017254,2]
[352006061,1738876247000,-500.0,0.00017254,2]
[352006063,1738876247009,-500.0,0.00017254,2]
[352006065,1738876247019,-500.0,0.00017254,2]
[352006067,1738876247028,-500.0,0.00017254,2]
[352006069,1738876247038,-315.30756979,0.00017254,2]
[352006071,1738876247047,-500.0,0.00017254,2]
[352006073,1738876247058,-500.0,0.00017254,2]
[352006075,1738876247068,-500.0,0.00017254,2]
[352006077,1738876247077,-500.0,0.00017254,2]
[352006078,1738876247087,-500.0,0.00017254,2]
[352006080,1738876247097,-607.11,0.00017254,2]
[352006082,1738876247106,-500.0,0.00017254,2]
[352006084,1738876247115,-500.0,0.00017254,2]
[352006086,1738876247125,-500.0,0.00017254,2]
[352006088,1738876247135,-500.0,0.00017254,2]
[352006090,1738876247143,-500.0,0.00017254,2]
[352006092,1738876247152,-500.0,0.00017254,2]
[352006094,1738876247161,-500.0,0.00017254,2]
[352006096,1738876247171,-430.46581523,0.00017254,2]
[352006098,1738876247180,-500.0,0.00017254,2]
[352006100,1738876247189,-500.0,0.00017254,2]
[352006102,1738876247198,-500.0,0.00017254,2]
[352006104,1738876247208,-500.0,0.00017254,2]
[352006106,1738876247218,-500.0,0.00017254,2]
[352006108,1738876247227,-500.0,0.00017254,2]
[352006110,1738876247238,-500.0,0.00017254,2]
[352006112,1738876247248,-500.0,0.00017254,2]
[352006114,1738876247258,-517.55,0.00017254,2]
[352006116,1738876247268,-500.0,0.00017254,2]
[352006118,1738876247278,-717.8,0.00017254,2]
[352006120,1738876247287,-500.0,0.00017254,2]
[352006121,1738876247296,-500.0,0.00017254,2]
[352006123,1738876247306,-500.0,0.00017254,2]
[352006125,1738876247315,-500.0,0.00017254,2]
[352006127,1738876247325,-500.0,0.00017254,2]
[352006129,1738876247335,-500.0,0.00017254,2]
[352006131,1738876247346,-500.0,0.00017254,2]
[352006133,1738876247357,-500.0,0.00017254,2]
[352006135,1738876247367,-500.0,0.00017254,2]
[352006137,1738876247378,-500.0,0.00017254,2]
[352006139,1738876247389,-500.0,0.00017254,2]
[352006142,1738876247399,-500.0,0.00017254,2]
[352006143,1738876247409,-500.0,0.00017254,2]
[352006145,1738876247418,-500.0,0.00017254,2]
[352006147,1738876247428,-500.0,0.00017254,2]
[352006149,1738876247438,-500.0,0.00017254,2]
[352006151,1738876247448,-500.0,0.00017254,2]
[352006153,1738876247460,-500.0,0.00017254,2]
[352006155,1738876247470,-500.0,0.00017254,2]
[352006157,1738876247479,-500.0,0.00017254,2]
[352006158,1738876247489,-500.0,0.00017254,2]
[352006159,1738876247498,-500.0,0.00017254,2]
[352006160,1738876247508,-500.0,0.00017254,2]
[352006161,1738876247517,-500.0,0.00017254,2]
[352006162,1738876247528,-500.0,0.00017254,2]
[352006163,1738876247538,-500.0,0.00017254,2]
[352006164,1738876247548,-500.0,0.00017254,2]
[352006165,1738876247558,-500.0,0.00017254,2]
[352006166,1738876247567,-548.47,0.00017254,2]
[352006167,1738876247577,-500.0,0.00017254,2]
[352006168,1738876247587,-500.0,0.00017254,2]
[352006169,1738876247597,-500.0,0.00017254,2]
[352006170,1738876247607,-500.0,0.00017254,2]
[352006171,1738876247617,-500.0,0.00017254,2]
[352006173,1738876247626,-500.0,0.00017254,2]
[352006174,1738876247635,-500.0,0.00017254,2]
[352006176,1738876247645,-500.0,0.00017254,2]
[352006178,1738876247655,-500.0,0.00017254,2]
[352006180,1738876247668,-500.0,0.00017254,2]
[352006183,1738876247683,-500.0,0.00017254,2]
[352006185,1738876247697,-500.0,0.00017254,2]
[352006187,1738876247713,-500.0,0.00017254,2]
[352006190,1738876247728,-500.0,0.00017254,2]
[352006192,1738876247743,-500.0,0.00017254,2]
[352006194,1738876247756,-500.0,0.00017254,2]
[352006197,1738876247770,-500.0,0.00017254,2]
[352006199,1738876247783,-500.0,0.00017254,2]
[352006201,1738876247796,-500.0,0.00017254,2]
[352006203,1738876247810,-500.0,0.00017254,2]
[352006205,1738876247823,-500.0,0.00017254,2]
[352006208,1738876247837,-356.15,0.00017254,2]
[352006210,1738876247850,-500.0,0.00017254,2]
[352006212,1738876247862,-500.0,0.00017254,2]
[352006215,1738876247874,-500.0,0.00017254,2]
[352006216,1738876247884,-500.0,0.00017254,2]
[352006219,1738876247896,-500.0,0.00017254,2]
[352006221,1738876247910,-500.0,0.00017254,2]
[352006223,1738876247924,-500.0,0.00017254,2]
[352006225,1738876247937,-500.0,0.00017254,2]
[352006228,1738876247949,-500.0,0.00017254,2]
[352006230,1738876247962,-543.36,0.00017254,2]
[352006232,1738876247977,-500.0,0.00017254,2]
[352006235,1738876247990,-500.0,0.00017254,2]
[352006237,1738876248004,-500.0,0.00017254,2]
[352006239,1738876248017,-500.0,0.00017254,2]
[352006242,1738876248032,-500.0,0.00017254,2]
[352006244,1738876248047,-500.0,0.00017254,2]
[352006246,1738876248060,-648.08910995,0.00017254,2]
[352006248,1738876248074,-500.0,0.00017254,2]
[352006251,1738876248089,-500.0,0.00017254,2]
[352006253,1738876248102,-500.0,0.00017254,2]
[352006255,1738876248115,-500.0,0.00017254,2]
[352006257,1738876248127,-514.1,0.00017254,2]
[352006260,1738876248141,-500.0,0.00017254,2]
[352006262,1738876248156,-500.0,0.00017254,2]
[352006264,1738876248168,-500.0,0.00017254,2]
[352006266,1738876248181,-500.0,0.00017254,2]
[352006269,1738876248194,-500.0,0.00017254,2]
[352006271,1738876248207,-675.59,0.00017254,2]
[352006273,1738876248220,-500.0,0.00017254,2]
[352006275,1738876248232,-1691.93,0.00017254,2]
[352006277,1738876248244,-500.0,0.00017254,2]
[352006280,1738876248258,-560.09,0.00017254,2]
[352006282,1738876248275,-628.05,0.00017254,2]
[352006284,1738876248287,-2151.37,0.00017254,2]
[352006286,1738876248298,-500.0,0.00017254,2]
[352006288,1738876248308,-637.52,0.00017254,2]
[352006290,1738876248321,-500.0,0.00017254,2]
[352006292,1738876248333,-500.0,0.00017254,2]
[352006294,1738876248346,-504.46,0.00017254,2]
[352006297,1738876248361,-500.0,0.00017254,2]
[352006299,1738876248374,-1046.02,0.00017254,2]
[352006302,1738876248388,-500.0,0.00017254,2]
[352006304,1738876248400,-500.0,0.00017254,2]
[352006306,1738876248412,-500.0,0.00017254,2]
[352006308,1738876248423,-581.67,0.00017254,2]
[352006310,1738876248435,-226.99,0.00017254,2]
[352006312,1738876248447,-500.0,0.00017254,2]
[352006314,1738876248460,-500.0,0.00017254,2]
[352006316,1738876248472,-500.0,0.00017254,2]
[352006319,1738876248488,-528.44,0.00017254,2]
[352006321,1738876248500,-516.47,0.00017254,2]
[352006323,1738876248512,-500.0,0.00017254,2]
[352006325,1738876248524,-500.0,0.00017254,2]
[352006327,1738876248535,-500.0,0.00017254,2]
[352006330,1738876248548,-500.0,0.00017254,2]
[352006332,1738876248560,-737.86,0.00017254,2]
[352006334,1738876248571,-500.0,0.00017254,2]
[352006336,1738876248583,-500.0,0.00017254,2]
[352006338,1738876248596,-1059.9,0.00017254,2]
[352006340,1738876248608,-500.0,0.00017254,2]
[352006343,1738876248620,-500.0,0.00017254,2]
[352006345,1738876248632,-748.88,0.00017254,2]
[352006347,1738876248644,-500.0,0.00017254,2]
[352006349,1738876248655,-505.36,0.00017254,2]
[352006351,1738876248672,-500.0,0.00017254,2]
[352006353,1738876248684,-411.25,0.00017254,2]
[352006355,1738876248696,-484.86,0.00017254,2]
[352006358,1738876248713,-500.0,0.00017254,2]
[352006360,1738876248725,-500.0,0.00017254,2]
[352006362,1738876248737,-613.34,0.00017254,2]
[352006364,1738876248748,-500.0,0.00017254,2]
[352006366,1738876248760,-500.0,0.00017254,2]
[352006368,1738876248773,-640.73,0.00017254,2]
[352006370,1738876248785,-693.31,0.00017254,2]
[352006373,1738876248798,-500.0,0.00017254,2]
[352006375,1738876248809,-394.4,0.00017254,2]
[352006377,1738876248822,-500.0,0.00017254,2]
[352006380,1738876248835,-229.85,0.00017254,2]
[352006382,1738876248847,-500.0,0.00017254,2]
[352006384,1738876248859,-610.16,0.00017254,2]
[352006386,1738876248871,-500.0,0.00017254,2]
[352006388,1738876248882,-833.92,0.00017254,2]
[352006390,1738876248894,-500.0,0.00017254,2]
[352006392,1738876248906,-500.0,0.00017254,2]
[352006394,1738876248918,-409.04,0.00017254,2]
[352006397,1738876248930,-653.12,0.00017254,2]
[352006399,1738876248942,-435.18,0.00017254,2]
[352006401,1738876248954,-576.4,0.00017254,2]
[352006403,1738876248968,-500.0,0.00017254,2]
[352006405,1738876248980,-1244.56,0.00017254,2]
[352006408,1738876248992,-500.0,0.00017254,2]
[352006410,1738876249004,-500.0,0.00017254,2]
[352006412,1738876249016,-500.0,0.00017254,2]
[352006414,1738876249027,-838.67,0.00017254,2]
[352006416,1738876249039,-310.25,0.00017254,2]
[352006418,1738876249050,-345.87571841,0.00017254,2]
[352006421,1738876249062,-215.03,0.00017254,2]
[352006423,1738876249074,-500.0,0.00017254,2]
[352006425,1738876249086,-500.0,0.00017254,2]
[352006427,1738876249097,-751.47,0.00017254,2]
[352006429,1738876249109,-500.0,0.00017254,2]
[352006431,1738876249121,-510.51,0.00017254,2]
[352006433,1738876249132,-500.0,0.00017254,2]
[352006436,1738876249144,-500.0,0.00017254,2]
[352006438,1738876249155,-634.66,0.00017254,2]
[352006440,1738876249167,-500.0,0.00017254,2]
[352006442,1738876249178,-1059.52,0.00017254,2]
[352006444,1738876249191,-500.0,0.00017254,2]
[352006446,1738876249203,-500.0,0.00017254,2]
[352006448,1738876249216,-500.0,0.00017254,2]
[352006450,1738876249228,-642.4,0.00017254,2]